bitfinex/quotes_ETHUSD_20210701
["timestamp","ask_amount","ask_price","bid_price","bid_amount"]
[1625106716288,4.24978407,2203.5,2201.4,12.63890671]
[1625106716384,7.8212,2203.5,2203.2,0.236]
[1625106716482,7.8212,2203.5,2201.3,0.2948617]
[1625106716483,0.39225791,2203.4,2201.3,0.2948617]
[1625106716590,6.81007,2203.2,2201.2,10.7852]
[1625106716688,0.30722279,2202.7,2201.2,10.7852]
[1625106716782,0.51061521,2202.6,2201.2,10.7852]
[1625106716882,3.86811521,2202.6,2201.2,10.7852]
[1625106716988,3.86811521,2202.6,2201.3,5.82790137]
[1625106717182,0.08798407,2202.5,2201.3,5.82790137]
[1625106717336,0.40172091,2202.5,2201.3,5.82790137]
[1625106717419,2.31572091,2202.5,2201.3,5.82790137]
[1625106717618,2.50772091,2202.5,2201.3,5.82790137]
[1625106717720,6.81289,2202.1,2201.3,5.85112443]
[1625106717824,0.08798407,2202.0,2201.3,5.85112443]
[1625106717924,0.30962538,2201.9,2201.3,0.00601666]
[1625106718024,0.40068774,2202.0,2201.3,0.00601666]
[1625106718626,0.07568407,2202.0,2201.3,0.00601666]
[1625106718724,1.72907441,2202.0,2201.3,0.00601666]
[1625106718823,0.14,2201.9,2201.3,0.00601666]
[1625106718921,1.72907441,2202.0,2201.3,0.00601666]
[1625106719024,6.81409,2201.7,2201.3,0.00601666]
[1625106719126,1.72907441,2202.0,2201.0,0.35601666]
[1625106719127,8.5,2201.9,2201.0,0.35601666]
[1625106719225,10.15339034,2201.9,2201.0,0.35601666]
[1625106719329,5.01,2201.7,2201.0,0.35601666]
[1625106719427,5.01,2201.6,2201.0,0.35601666]
[1625106719610,0.07568407,2201.5,2201.0,0.30601666]
[1625106720002,0.02568407,2201.5,2201.0,0.30601666]
[1625106720102,5.0735,2201.6,2201.0,0.30601666]
[1625106720306,4.0307,2201.6,2201.0,0.30601666]
[1625106720509,0.02568407,2201.5,2201.0,0.30601666]
[1625106720602,0.06568407,2201.5,2201.0,0.30601666]
[1625106720901,0.02568407,2201.5,2200.9,0.01630872]
[1625106721004,0.02568407,2201.5,2200.0,1.206]
[1625106721107,0.52765521,2201.4,2200.0,1.206]
[1625106721203,0.52765521,2201.4,2200.1,5.11221691]
[1625106721306,18.16185663,2201.3,2200.0,1.206]
[1625106721408,4.0164749,2201.1,2199.3,20.9559]
[1625106721509,0.51932375,2201.0,2199.3,20.9559]
[1625106721619,0.51932375,2201.0,2198.8,9.9595]
[1625106721620,0.34427391,2200.6,2198.8,9.9595]
[1625106721836,5.35427391,2200.6,2198.9,5.72069464]
[1625106721962,1.7755,2200.5,2199.8,4.0888378]
[1625106722025,0.627611,2200.4,2199.8,4.0888378]
[1625106722227,0.02568407,2200.3,2199.8,4.0388378]
[1625106722326,4.64298407,2200.3,2199.9,4.78387414]
[1625106722436,4.64298407,2200.3,2199.8,4.0388378]
[1625106722527,4.64298407,2200.3,2199.9,4.88332944]
[1625106722878,1.1904,2200.4,2199.9,4.88332944]
[1625106722978,0.0161167,2200.7,2199.9,4.88332944]
[1625106723581,0.0161167,2200.7,2199.9,7.92317057]
[1625106723678,0.0161167,2200.7,2199.9,2.44324178]
[1625106723779,0.0161167,2200.7,2199.9,8.1599288]
[1625106723975,0.0161167,2200.7,2199.9,2.44324178]
[1625106724087,1.3934167,2200.7,2199.8,4.0388378]
[1625106724184,4.7284167,2200.7,2199.9,5.18798227]
[1625106724684,4.7123,2200.7,2199.9,5.18798227]
[1625106725385,4.7123,2200.7,2199.8,4.0388378]
[1625106725587,5.04042589,2200.7,2199.8,4.0388378]
[1625106725688,0.63525293,2200.5,2198.8,10.1345]
[1625106725787,0.30875903,2200.3,2198.8,10.1345]
[1625106725890,4.49115687,2200.2,2198.8,10.1345]
[1625106725987,3.6874557,2200.0,2198.6,10.3867]
[1625106726088,3.7703587,2200.1,2197.9,9.8542]
[1625106726187,3.7703587,2200.1,2197.3,2.44240844]
[1625106726188,6.82205,2199.2,2197.3,13.80725844]
[1625106726350,4.38343675,2199.1,2197.3,2.44240844]
[1625106726432,4.38343675,2199.1,2197.6,0.00943814]
[1625106726433,0.89709545,2199.0,2197.6,0.00943814]
[1625106726530,5.10149187,2198.9,2197.6,0.00943814]
[1625106726778,0.30314025,2198.3,2197.6,0.00943814]
[1625106726875,1.32854025,2198.3,2197.6,0.00943814]
[1625106726979,15.0,2198.2,2197.6,0.00943814]
[1625106727073,6.78234025,2198.3,2197.8,0.87136684]
[1625106727171,15.0,2198.1,2197.8,0.87136684]
[1625106727277,6.78234025,2198.3,2197.8,0.87136684]
[1625106727481,0.04,2198.2,2197.8,0.87136684]
[1625106727578,1.48420257,2197.9,2197.8,0.87136684]
[1625106727779,1.1962,2197.9,2197.8,0.87136684]
[1625106727880,1.1962,2197.9,2197.8,5.81186651]
[1625106727986,1.1962,2197.9,2197.8,5.80598648]
[1625106728088,1.704,2198.5,2197.8,5.80598648]
[1625106728187,4.63043396,2198.7,2197.8,5.80598648]
[1625106728285,4.63043396,2198.7,2197.8,0.87136684]
[1625106728384,4.63043396,2198.7,2197.8,0.87833748]
[1625106728483,0.2959902,2198.3,2197.8,0.87833748]
[1625106728633,4.4446902,2198.3,2197.8,0.87833748]
[1625106729326,5.01,2198.1,2197.8,0.87833748]
[1625106729529,2.8915,2198.2,2197.8,0.87833748]
[1625106729631,2.8915,2198.2,2197.9,4.8008599]
[1625106729728,1.10379289,2198.2,2196.2,8.31319188]
[1625106729829,1.10379289,2198.2,2196.1,19.80158]
[1625106729830,2.27639289,2198.2,2196.1,19.80158]
[1625106729926,0.36401953,2198.1,2196.1,19.80158]
[1625106730028,0.36401953,2198.1,2196.2,7.77400744]
[1625106730129,3.54439289,2198.2,2196.3,2.69954906]
[1625106730228,3.54439289,2198.2,2196.3,2.81954906]
[1625106730329,3.7750957,2198.2,2196.3,2.69954906]
[1625106730430,10.6012357,2198.2,2196.3,2.69954906]
[1625106730526,0.39579807,2198.1,2196.3,2.69954906]
[1625106730629,0.39579807,2198.1,2196.1,19.80158]
[1625106730728,0.39579807,2198.1,2196.1,10.7012]
[1625106730859,1.848,2198.1,2196.1,10.7012]
[1625106730957,0.32879763,2198.0,2196.1,18.32249342]
[1625106731056,0.01317822,2198.0,2196.1,18.32249342]
[1625106731156,1.65339034,2198.1,2196.1,10.6512]
[1625106731255,1.65339034,2198.1,2196.1,10.6152]
[1625106731358,1.65339034,2198.0,2196.1,18.19524624]
[1625106731457,1.98245169,2198.0,2196.1,10.6152]
[1625106731559,1.66804588,2198.0,2196.3,5.01]
[1625106731661,1.65339034,2198.1,2196.4,7.37534906]
[1625106731780,1.65339034,2198.1,2196.8,20.0]
[1625106731860,1.65339034,2198.1,2196.9,10.0326094]
[1625106732017,1.872,2198.6,2197.3,3.89203382]
[1625106732083,1.872,2198.6,2197.4,8.16915303]
[1625106732162,0.01254972,2198.9,2197.5,5.01]
[1625106732259,0.01254972,2198.9,2197.6,11.80437907]
[1625106732362,0.01254972,2198.9,2197.6,11.53765173]
[1625106732561,0.01254972,2198.9,2197.4,2.64501346]
[1625106732664,0.30477609,2198.6,2197.0,2.71130226]
[1625106732812,2.44916305,2198.6,2197.0,2.71130226]
[1625106732910,2.44916305,2198.6,2196.3,10.0073]
[1625106732911,15.0,2198.5,2196.3,10.0073]
[1625106733086,2.44848518,2198.4,2196.3,10.0073]
[1625106733183,0.06,2198.3,2196.3,10.0073]
[1625106733285,3.92633841,2198.2,2197.0,0.0330631]
[1625106733486,15.46302197,2198.1,2197.0,0.0330631]
[1625106733589,0.42938678,2198.0,2197.0,0.0330631]
[1625106733688,0.36938678,2198.0,2196.0,0.01]
[1625106733789,6.8284,2197.6,2196.0,0.01]
[1625106733887,0.38504422,2197.5,2196.0,0.01]
[1625106733987,4.63516481,2197.7,2196.0,0.01]
[1625106734091,0.36922031,2197.6,2196.0,0.01]
[1625106734192,0.38148886,2197.6,2196.0,0.01]
[1625106734287,0.01226855,2197.6,2196.0,2.75101759]
[1625106734691,0.26110798,2198.0,2196.0,2.75101759]
[1625106734692,0.27545543,2198.0,2196.0,2.75101759]
[1625106734789,0.01434745,2198.0,2196.2,0.30472208]
[1625106734887,0.01434745,2198.0,2196.6,9.09878]
[1625106734989,0.01434745,2198.0,2196.5,1.3362]
[1625106735330,0.01434745,2198.0,2196.5,2.8171]
[1625106735591,8.03440242,2198.1,2196.5,1.4809]
[1625106735689,8.03440242,2198.1,2195.6,9.10292]
[1625106735690,0.30022249,2197.5,2195.6,9.10292]
[1625106735791,0.30022249,2197.5,2194.3,10.7796]
[1625106735792,0.28801774,2197.4,2195.2,75.0]
[1625106735959,6.83197,2196.6,2195.2,75.0]
[1625106736052,7.13773623,2196.5,2195.2,75.0]
[1625106736144,6.92729634,2196.4,2195.2,75.0]
[1625106736235,15.0,2196.3,2195.2,55.46448561]
[1625106736339,17.95279991,2196.3,2195.2,55.46448561]
[1625106736445,9.04759872,2196.2,2195.2,55.46448561]
[1625106736542,4.54,2195.3,2195.2,55.46448561]
[1625106736640,4.54,2195.3,2195.2,44.1782084]
[1625106736641,51.04441059,2195.3,2195.2,44.1782084]
[1625106736743,51.04441059,2195.3,2194.6,0.14400643]
[1625106736744,4.04604847,2194.7,2194.6,0.14400643]
[1625106736837,1.1051,2194.9,2194.6,0.14400643]
[1625106736937,0.29814333,2194.7,2194.6,0.14400643]
[1625106737046,0.04814333,2194.7,2194.6,0.09400643]
[1625106737141,3.63894333,2194.7,2194.6,0.09400643]
[1625106737243,3.63894333,2194.7,2194.5,4.41134423]
[1625106737338,5.23614333,2194.7,2194.5,4.41134423]
[1625106737694,2.1989,2194.6,2194.5,4.41134423]
[1625106737894,2.22,2194.6,2194.5,4.41134423]
[1625106737998,2.48043164,2194.6,2194.5,4.41134423]
[1625106738093,2.29443164,2194.6,2194.5,4.41134423]
[1625106738197,7.30443164,2194.6,2194.5,4.41134423]
[1625106738291,2.29443164,2194.6,2194.5,4.41134423]
[1625106738444,2.118,2194.6,2194.5,9.48337326]
[1625106738644,1.77182489,2195.2,2194.5,9.48337326]
[1625106738841,1.77182489,2195.2,2194.5,4.41134423]
[1625106738942,0.01382489,2195.2,2194.6,5.5176413]
[1625106739142,0.01497211,2195.8,2194.6,5.5176413]
[1625106739340,0.01497211,2195.8,2194.7,0.12]
[1625106739441,0.01497211,2195.8,2194.6,5.5176413]
[1625106739541,0.01568561,2196.1,2194.8,5.01]
[1625106739645,0.01748,2196.2,2194.8,5.01]
[1625106739837,0.01748,2196.2,2194.9,6.54146951]
[1625106739893,0.01492578,2196.4,2195.2,6.05652566]
[1625106739992,0.01492578,2196.4,2195.2,6.027583]
[1625106740092,4.65078251,2196.4,2195.2,6.027583]
[1625106740192,4.94887082,2196.4,2195.0,4.96013574]
[1625106740293,12.15947082,2196.4,2195.0,5.02341473]
[1625106740393,0.25366201,2196.3,2195.0,5.02341473]
[1625106740789,2.32366201,2196.3,2195.0,5.02341473]
[1625106740901,2.07,2196.3,2195.2,5.01]
[1625106740989,1.896,2196.3,2195.3,4.99743955]
[1625106741241,1.896,2196.3,2194.7,5.01]
[1625106741242,6.84515781,2196.3,2195.2,5.28410413]
[1625106741342,0.27914441,2196.2,2194.8,5.85912742]
[1625106741549,6.83294,2196.3,2194.8,5.85912742]
[1625106741781,6.83294,2196.3,2193.7,3.38055773]
[1625106741782,0.29927373,2195.4,2193.7,3.38055773]
[1625106741891,0.6498267,2195.3,2193.7,3.38055773]
[1625106741982,0.6498267,2195.3,2192.3,5.0]
[1625106741983,9.95767151,2195.3,2192.3,5.0]
[1625106742116,0.86858696,2195.2,2192.3,5.0]
[1625106742205,8.63407256,2195.1,2192.3,5.0]
[1625106742299,0.29183284,2194.3,2192.3,5.0]
[1625106742408,1.44343284,2194.3,2192.3,5.0]
[1625106742497,5.32103284,2194.3,2192.3,5.0]
[1625106742599,5.32103284,2194.3,2192.3,4.55]
[1625106742705,7.32167907,2194.2,2192.3,4.55]
[1625106742898,0.30482346,2193.6,2192.4,3.01274538]
[1625106743000,0.30482346,2193.6,2192.3,4.55]
[1625106743001,3.73812346,2193.6,2192.3,4.55]
[1625106743103,0.32842325,2193.5,2192.3,4.55]
[1625106743305,0.30872116,2193.2,2192.4,12.88109561]
[1625106743411,3.80013584,2193.5,2192.4,5.28109561]
[1625106743412,3.7537,2193.5,2192.4,5.28109561]
[1625106743551,5.5717,2193.5,2192.4,5.28109561]
[1625106743653,2.6402,2193.6,2192.4,7.26360435]
[1625106743766,0.01240554,2194.1,2192.4,7.26360435]
[1625106743767,0.00622221,2194.1,2192.4,7.26360435]
[1625106743909,0.04818812,2195.0,2192.5,3.21884459]
[1625106744004,0.04818812,2195.0,2193.1,20.0]
[1625106744102,0.04818812,2195.0,2193.2,9.98746414]
[1625106744206,0.04818812,2195.0,2193.2,0.04]
[1625106744444,0.04818812,2195.0,2193.3,6.35014006]
[1625106744544,0.04818812,2195.0,2193.3,0.15970298]
[1625106744646,0.01129311,2195.1,2193.1,0.01190682]
[1625106744759,3.80782386,2195.0,2192.8,0.06246603]
[1625106744846,3.80782386,2195.0,2192.4,0.06274027]
[1625106744946,0.17728841,2194.9,2192.2,9.11286]
[1625106745044,0.17728841,2194.9,2192.6,7.99217862]
[1625106745143,0.19284026,2194.9,2192.4,8.17806921]
[1625106745242,0.19284026,2194.9,2192.5,0.0787598]
[1625106745345,0.01821674,2194.8,2192.5,0.0787598]
[1625106745445,0.01821674,2194.8,2192.4,8.17806921]
[1625106745544,0.01821674,2194.8,2192.4,8.41455762]
[1625106745645,0.30263247,2194.5,2192.4,8.41455762]
[1625106745745,0.12545484,2194.4,2192.4,8.41455762]
[1625106745895,0.29786378,2193.8,2192.4,8.17806921]
[1625106745993,11.89762378,2193.8,2192.3,4.55]
[1625106746094,13.44892378,2193.8,2192.4,6.3095095]
[1625106746193,0.09561857,2193.7,2192.4,6.3095095]
[1625106746396,0.09561857,2193.7,2192.5,0.1]
[1625106746626,4.7604,2193.8,2192.3,4.55]
[1625106746629,4.7604,2193.8,2192.4,5.98784044]
[1625106747122,4.76709453,2193.8,2192.4,5.98784044]
[1625106747225,4.7604,2193.8,2192.4,5.98784044]
[1625106747327,3.5017,2193.8,2192.4,5.98784044]
[1625106747526,3.5017,2193.8,2192.6,5.01]
[1625106747625,0.02413253,2194.2,2192.7,7.30260996]
[1625106747725,0.00697675,2194.2,2192.7,7.30260996]
[1625106747827,0.30263247,2194.5,2192.9,5.01]
[1625106747932,0.30263247,2194.5,2193.0,6.62074583]
[1625106748031,0.30263247,2194.5,2193.0,5.30787916]
[1625106748135,0.86858696,2194.4,2193.0,5.15621651]
[1625106748258,0.30721647,2193.9,2192.4,5.47481117]
[1625106748339,5.6761,2194.0,2192.4,5.47481117]
[1625106748431,12.51523,2194.0,2192.4,5.47481117]
[1625106748727,11.10193,2194.0,2192.4,5.47481117]
[1625106749650,11.10193,2194.0,2192.5,0.00698137]
[1625106749742,0.29886954,2193.9,2192.5,0.00698137]
[1625106749846,0.02616524,2193.8,2192.5,0.00698137]
[1625106750793,2.00998472,2193.9,2192.5,0.00698137]
[1625106750989,0.30598472,2193.9,2192.5,0.00698137]
[1625106751238,0.29886954,2193.9,2192.5,0.00698137]
[1625106751335,1.5364,2194.0,2192.6,5.01]
[1625106751440,1.5364,2194.0,2192.5,0.00698137]
[1625106751536,4.75456922,2193.9,2192.5,0.00698137]
[1625106751635,4.75456922,2193.9,2192.5,5.01698137]
[1625106751744,6.50255755,2193.9,2192.5,0.00698137]
[1625106751835,6.49456922,2193.9,2192.3,4.50698137]
[1625106751937,6.49456922,2193.9,2192.4,6.12769531]
[1625106751938,6.4082283,2193.9,2192.4,6.12769531]
[1625106752035,4.66161174,2193.9,2192.3,4.50698137]
[1625106752137,4.66885821,2193.9,2192.3,4.50698137]
[1625106752237,0.08172109,2193.8,2192.3,4.50698137]
[1625106752334,0.08172109,2193.8,2192.4,6.07419037]
[1625106752440,6.83965,2193.7,2192.4,6.03744254]
[1625106752535,6.83965,2193.7,2192.3,4.50698137]
[1625106752633,6.85217071,2193.7,2192.3,4.50698137]
[1625106752834,6.85217071,2193.7,2192.4,6.0354392]
[1625106753040,6.8461055,2193.7,2192.4,6.0354392]
[1625106753238,0.20716922,2193.9,2192.4,6.0354392]
[1625106753347,1.66776333,2194.1,2192.4,6.0354392]
[1625106753444,1.66812647,2194.1,2192.4,6.0354392]
[1625106753545,1.66812647,2194.1,2192.5,0.08379413]
[1625106753646,1.66143842,2194.1,2192.5,0.08379413]
[1625106753754,1.788,2194.3,2192.5,0.08379413]
[1625106753847,1.96407089,2194.5,2192.5,0.08379413]
[1625106753848,1.764,2194.4,2192.5,0.08379413]
[1625106753950,1.764,2194.4,2192.6,5.01]
[1625106754047,1.764,2194.4,2192.7,8.12480955]
[1625106754147,1.96407089,2194.5,2192.7,13.38918968]
[1625106754148,1.66143842,2194.5,2192.7,13.38918968]
[1625106754504,1.66143842,2194.5,2192.7,5.26438013]
[1625106754598,10.58584532,2194.4,2192.8,5.01465229]
[1625106754752,4.34945126,2193.8,2192.4,5.19849603]
[1625106754848,4.34945126,2193.8,2192.3,4.50698137]
[1625106754849,5.99955126,2193.8,2192.3,4.50698137]
[1625106754952,5.99955126,2193.8,2192.4,6.11877645]
[1625106754953,0.03574366,2193.7,2192.4,6.11877645]
[1625106755050,7.36040164,2193.8,2192.4,6.11877645]
[1625106755145,2.1068,2193.7,2192.4,6.11877645]
[1625106755246,3.9548,2193.7,2192.4,6.11877645]
[1625106755350,0.04724228,2193.6,2192.3,4.45698137]
[1625106755447,0.05537989,2193.6,2192.3,4.45698137]
[1625106755694,0.05537989,2193.6,2192.4,6.16145652]
[1625106755794,0.00813761,2193.6,2192.4,6.16145652]
[1625106756045,1.752,2193.6,2192.4,6.16145652]
[1625106756298,0.01404662,2194.3,2192.3,4.45698137]
[1625106756299,1.782,2194.3,2192.3,4.45698137]
[1625106756395,1.78931922,2194.3,2192.3,4.45698137]
[1625106756493,7.75551922,2194.3,2192.4,6.23306351]
[1625106756593,0.06015748,2194.0,2192.3,4.40698137]
[1625106756810,0.07218789,2194.0,2192.3,4.40698137]
[1625106756903,0.07218789,2194.0,2192.4,6.15250976]
[1625106757000,0.07218789,2194.0,2192.4,6.22905787]
[1625106757101,0.07218789,2194.0,2192.4,6.24817324]
[1625106757306,0.01203041,2194.0,2192.4,6.24817324]
[1625106757403,2.05203041,2194.0,2192.4,6.24817324]
[1625106757505,0.05929038,2193.9,2192.4,6.24817324]
[1625106757948,4.19861844,2194.3,2192.4,6.24817324]
[1625106758048,1.92677201,2194.5,2192.6,5.01]
[1625106758145,0.00677201,2194.5,2192.6,5.01]
[1625106758250,1.794,2194.6,2192.7,10.35250983]
[1625106758344,1.794,2194.6,2192.9,5.01]
[1625106758443,0.00610778,2194.9,2193.0,8.23472459]
[1625106758542,15.00610778,2194.9,2193.1,0.22741645]
[1625106758742,15.00610778,2194.9,2192.6,1.3231]
[1625106758743,15.00610778,2194.9,2192.7,8.50527254]
[1625106758841,15.0,2194.9,2192.7,8.50527254]
[1625106758943,1.78339008,2195.3,2192.7,8.50527254]
[1625106758944,0.00916809,2195.2,2192.7,8.50527254]
[1625106759046,1.806,2195.3,2193.2,6.83545]
[1625106759146,1.806,2195.3,2193.4,0.30092067]
[1625106759243,2.10936459,2195.6,2193.4,0.30092067]
[1625106759442,3.74156459,2195.6,2193.4,0.30703052]
[1625106759549,4.17786459,2195.6,2193.4,0.30703052]
[1625106759643,15.30936459,2195.6,2193.4,0.30703052]
[1625106759743,15.30936459,2195.6,2193.4,0.00610985]
[1625106759845,15.30936459,2195.6,2193.5,5.01]
[1625106759943,15.30936459,2195.6,2193.6,7.97171841]
[1625106760120,15.30936459,2195.6,2193.8,5.01]
[1625106760215,15.30936459,2195.6,2193.9,7.09158961]
[1625106760318,10.4152,2196.0,2193.9,7.09158961]
[1625106760418,10.4152,2196.0,2194.0,0.19024514]
[1625106760517,10.4152,2196.0,2194.1,5.01]
[1625106760673,10.4152,2196.0,2194.2,10.55660545]
[1625106760764,10.4152,2196.0,2194.2,14.80210545]
[1625106760868,10.4152,2196.0,2194.5,0.15386134]
[1625106760965,10.4152,2196.0,2194.5,8.23307869]
[1625106761169,10.4152,2196.0,2194.7,5.01]
[1625106761268,10.4152,2196.0,2194.8,8.34609006]
[1625106761370,10.4152,2196.0,2194.8,12.67479006]
[1625106761469,9.914,2196.7,2195.0,5.01]
[1625106761569,9.914,2196.7,2195.1,0.23504475]
[1625106761667,10.1347,2197.1,2195.1,9.39024432]
[1625106761767,15.0,2197.1,2195.1,9.39024432]
[1625106761868,15.0,2197.1,2195.4,8.18232351]
[1625106762069,15.0,2197.1,2195.6,5.01]
[1625106762165,15.0,2197.1,2195.7,6.83092893]
[1625106762353,0.30071872,2197.4,2195.6,11.3478]
[1625106762450,6.82897,2197.7,2195.7,3.47713946]
[1625106762548,6.82897,2197.7,2195.9,5.01]
[1625106762748,6.82897,2197.7,2196.0,3.75507315]
[1625106762897,21.82897,2197.7,2196.0,3.6921432]
[1625106762999,6.82897,2197.7,2196.3,3.18938944]
[1625106763097,6.82897,2197.7,2195.9,3.86504776]
[1625106763199,8.2,2197.6,2195.8,5.01]
[1625106763296,6.82897,2197.7,2195.8,5.01]
[1625106763400,6.85247026,2197.7,2195.9,3.23021226]
[1625106763552,6.82897,2197.7,2195.8,4.19607794]
[1625106763651,2.11064243,2197.9,2195.6,14.30297]
[1625106763756,0.02242695,2197.8,2195.6,14.30297]
[1625106763849,15.02242695,2197.8,2195.6,14.30297]
[1625106763949,15.02242695,2197.8,2195.7,0.05706233]
[1625106763950,15.1,2197.8,2195.7,0.05706233]
[1625106764049,0.08812186,2197.7,2195.6,14.30297]
[1625106764148,2.11337708,2197.9,2195.7,0.0177592]
[1625106764248,0.33568224,2197.9,2195.7,0.0177592]
[1625106764454,0.33635706,2197.9,2195.7,0.0177592]
[1625106764587,0.30133292,2197.9,2195.7,0.0177592]
[1625106764889,6.828,2197.8,2196.0,6.82709]
[1625106764995,0.30137169,2197.4,2195.6,10.44707]
[1625106765091,0.22858002,2197.3,2195.6,10.44707]
[1625106765190,0.22858002,2197.3,2195.6,1.3435]
[1625106765693,0.15192164,2197.5,2195.6,1.3435]
[1625106765790,0.05192164,2197.5,2195.6,6.2748]
[1625106765893,0.00861328,2197.6,2195.6,7.8621]
[1625106765993,0.02923273,2197.8,2196.2,3.8878]
[1625106766089,0.31029266,2197.9,2196.2,3.8878]
[1625106766191,1.91819266,2197.9,2196.2,3.8878]
[1625106766391,15.0,2197.8,2196.2,3.8878]
[1625106767242,15.0,2197.8,2196.1,1.1443]
[1625106767342,0.07615447,2197.7,2196.0,14.11294]
[1625106767442,6.82751,2197.6,2196.2,11.83719]
[1625106768048,0.00804227,2197.7,2196.2,11.83719]
[1625106768248,23.30133292,2197.9,2196.2,11.83719]
[1625106768446,0.30133292,2197.9,2196.3,0.09228065]
[1625106768850,0.30133292,2197.9,2196.2,6.0556]
[1625106768947,10.1639,2198.0,2196.2,6.0556]
[1625106769111,10.1639,2198.0,2196.2,5.01]
[1625106769406,10.1639,2198.0,2196.2,9.2826]
[1625106769608,10.1639,2198.0,2197.0,0.08495044]
[1625106769710,10.0,2198.2,2197.0,0.1843584]
[1625106769815,10.0,2198.2,2197.2,0.19246026]
[1625106769909,9.9,2198.2,2197.1,1.2084]
[1625106770110,9.9,2198.2,2197.1,1.0240416]
[1625106770520,9.85,2198.2,2197.1,1.0240416]
[1625106770607,9.85,2198.2,2197.5,6.82264]
[1625106770807,9.85,2198.2,2197.5,10.59784]
[1625106771864,20.3336,2199.2,2197.5,10.59784]
[1625106771968,10.4497,2199.2,2197.7,5.01]
[1625106772069,10.4497,2199.2,2197.8,0.2729114]
[1625106772186,10.0529,2199.7,2197.8,0.2729114]
[1625106773161,10.0529,2199.7,2197.9,1.61818503]
[1625106773264,10.0529,2199.7,2198.8,6.81831]
[1625106773368,10.3814,2200.3,2198.9,1.49829168]
[1625106773464,10.3814,2200.3,2199.0,5.01]
[1625106773617,20.6639,2200.7,2199.0,5.01]
[1625106773618,10.7708,2200.7,2199.1,1.44585208]
[1625106773700,10.7708,2200.7,2199.0,5.02177288]
[1625106773799,10.7708,2200.7,2199.1,0.1]
[1625106773897,10.7708,2200.7,2199.2,3.40825]
[1625106773999,11.04820277,2201.1,2199.2,3.40825]
[1625106774100,13.22300277,2201.1,2199.2,3.40825]
[1625106774300,13.22300277,2201.1,2199.0,0.01177288]
[1625106774301,13.17300277,2201.1,2199.0,0.01177288]
[1625106774399,1.776,2201.0,2199.0,5.02177288]
[1625106774505,1.776,2201.0,2199.5,9.08957]
[1625106774599,1.776,2201.0,2199.5,5.05037259]
[1625106774701,4.17030277,2201.1,2199.5,5.05037259]
[1625106774898,2.43030277,2201.1,2199.4,9.08957]
[1625106775101,2.43030277,2201.1,2198.9,4.2793]
[1625106775198,0.15041597,2201.0,2198.9,4.2793]
[1625106775499,1.96241597,2201.0,2198.9,4.2793]
[1625106775657,1.96241597,2201.0,2199.1,6.81813]
[1625106775754,5.01,2201.0,2199.1,10.59182874]
[1625106775897,5.01,2200.9,2199.1,6.81813]
[1625106776194,4.96,2200.9,2199.1,6.81813]
[1625106776293,0.11378634,2200.8,2199.1,6.81813]
[1625106776494,0.11378634,2200.8,2199.0,9.09093]
[1625106776594,0.63664651,2200.8,2199.0,9.09093]
[1625106776692,0.30639309,2200.6,2198.8,0.00657772]
[1625106776796,0.00943006,2200.5,2198.8,0.00657772]
[1625106776897,0.00943006,2200.5,2198.6,6.81942]
[1625106776898,0.25281558,2200.4,2198.6,6.81942]
[1625106776996,0.25975683,2200.4,2198.4,11.36285]
[1625106777097,0.25975683,2200.4,2198.1,31.40286]
[1625106777195,0.25975683,2200.4,2198.1,20.0394]
[1625106777196,0.28819991,2200.0,2198.1,20.0394]
[1625106777294,0.44121824,2199.9,2197.3,0.30792956]
[1625106777597,0.44121824,2199.9,2197.7,3.73073288]
[1625106777701,0.44121824,2199.9,2198.4,6.82004]
[1625106777796,0.44121824,2199.9,2198.4,10.50814]
[1625106777898,0.17527672,2200.3,2198.4,10.50814]
[1625106778108,5.01,2200.2,2198.4,10.50814]
[1625106778210,0.00611927,2200.2,2198.4,10.50814]
[1625106778305,0.11383444,2200.1,2198.5,0.1]
[1625106778405,8.00638505,2200.4,2198.5,0.1]
[1625106778406,0.12148485,2200.4,2198.5,0.1]
[1625106778504,0.00638505,2200.4,2198.5,0.1]
[1625106778704,0.00638505,2200.4,2198.6,5.01]
[1625106778802,10.3618694,2200.5,2198.6,5.01]
[1625106778907,10.3618694,2200.5,2198.6,4.96]
[1625106779000,5.31639309,2200.6,2198.6,4.96]
[1625106779208,0.30639309,2200.6,2198.7,3.78509476]
[1625106779305,1.89,2201.0,2198.7,3.78509476]
[1625106779306,1.89,2201.0,2198.9,6.81853]
[1625106779406,1.728,2201.0,2199.0,4.23473058]
[1625106779603,1.728,2201.0,2199.1,0.06]
[1625106779709,21.0965,2201.2,2199.2,0.12223288]
[1625106779807,10.2961,2201.2,2199.2,0.12223288]
[1625106779906,10.2961,2201.2,2199.2,0.12843438]
[1625106780107,10.0961,2201.2,2199.3,4.37536486]
[1625106780209,10.0961,2201.2,2199.2,0.12843438]
[1625106780210,10.0961,2201.2,2199.4,3.6930446]
[1625106780353,10.0961,2201.2,2199.4,3.5632911]
[1625106780457,10.0961,2201.2,2199.5,0.17398276]
[1625106780558,10.0961,2201.2,2199.5,0.1803961]
[1625106780652,10.0961,2201.2,2199.5,0.00641334]
[1625106781055,10.0961,2201.2,2199.6,3.7604]
[1625106781353,10.0961,2201.2,2199.6,3.7004]
[1625106782895,0.11224061,2201.1,2199.6,3.7004]
[1625106782996,10.0961,2201.2,2199.6,3.7004]
[1625106783396,0.11141015,2201.1,2199.6,3.7004]
[1625106783496,10.0961,2201.2,2199.6,3.7004]
[1625106784098,0.23076013,2201.1,2199.6,3.7004]
[1625106784700,2.48626013,2201.1,2199.6,3.7004]
[1625106784854,4.37279378,2201.1,2199.0,0.00670779]
[1625106784943,5.01,2200.9,2199.0,0.00670779]
[1625106785042,0.52822757,2200.8,2198.8,9.09045]
[1625106785443,4.10122757,2200.8,2198.8,9.09045]
[1625106785545,4.6334,2200.8,2198.8,9.09045]
[1625106785648,4.10122757,2200.8,2198.8,9.09045]
[1625106785746,5.02334054,2200.6,2198.8,9.09045]
[1625106785845,0.2629966,2200.5,2198.5,21.1127]
[1625106785946,8.17207372,2200.5,2198.3,9.09275]
[1625106786045,8.17207372,2200.5,2197.8,21.1192]
[1625106786145,0.49946171,2200.2,2197.8,21.1192]
[1625106786246,0.32138023,2200.0,2197.8,21.1192]
[1625106786344,0.43160569,2199.9,2197.8,21.1192]
[1625106786444,0.43160569,2199.9,2197.8,10.3769]
[1625106786886,5.44160569,2199.9,2197.9,6.82057]